fUST/lending_fUST_20251030
["ID","MTS","AMOUNT","RATE_DAILY","PERIOD"]
[392664435,1761797198298,-294.78003431,0.00025655,2]
[392664436,1761797198506,-45.02877088,0.00025655,2]
[392664437,1761797198537,-500.0,0.00025655,2]
[392664438,1761797198566,-594.77743005,0.00025655,2]
[392664439,1761797198595,-500.0,0.00025655,2]
[392664440,1761797198625,-500.0,0.00025655,2]
[392664441,1761797198655,-500.0,0.00025655,2]
[392664442,1761797198684,-500.0,0.00025655,2]
[392664443,1761797198714,-500.0,0.00025655,2]
[392664444,1761797198743,-500.0,0.00025655,2]
[392664445,1761797198771,-500.0,0.00025655,2]
[392664446,1761797198803,-219.17242633,0.00025655,2]
[392664447,1761797198909,-500.0,0.00025655,2]
[392664448,1761797198953,-500.0,0.00025655,2]
[392664449,1761797198982,-500.0,0.00025655,2]
[392664450,1761797199011,-500.0,0.00025655,2]
[392664451,1761797199040,-500.0,0.00025655,2]
[392664452,1761797199068,-500.0,0.00025655,2]
[392664453,1761797199096,-500.0,0.00025655,2]
[392664454,1761797199125,-500.0,0.00025655,2]
[392664455,1761797199154,-500.0,0.00025655,2]
[392664456,1761797199183,-500.0,0.00025655,2]
[392664457,1761797199490,-70.73868481,0.00025655,2]
[392664458,1761797199503,-0.01,0.00025655,2]
[392664459,1761797199640,-429.25131519,0.00025655,2]
[392664460,1761797199671,-500.0,0.00025655,2]
[392664461,1761797199701,-500.0,0.00025655,2]
[392664462,1761797199731,-500.0,0.00025655,2]
[392664463,1761797199759,-500.0,0.00025655,2]
[392664464,1761797199788,-500.0,0.00025655,2]
[392664465,1761797199817,-500.0,0.00025655,2]
[392664466,1761797199846,-500.0,0.00025655,2]
[392664467,1761797199874,-500.0,0.00025655,2]
[392664468,1761797199902,-500.0,0.00025655,2]
[392664469,1761797199939,-500.0,0.00025655,2]
[392664470,1761797199967,-500.0,0.00025655,2]
[392664471,1761797199995,-500.0,0.00025655,2]
[392664472,1761797200023,-500.0,0.00025655,2]
[392664473,1761797200050,-500.0,0.00025655,2]
[392664474,1761797200078,-500.0,0.00025655,2]
[392664475,1761797200106,-500.0,0.00025655,2]
[392664476,1761797200135,-500.0,0.00025655,2]
[392664477,1761797200163,-500.0,0.00025655,2]
[392664478,1761797200191,-500.0,0.00025655,2]
[392664479,1761797200516,-141.50736962,0.00025655,2]
[392664480,1761797200530,-0.01,0.00025655,2]
[392664481,1761797201061,-358.48263038,0.00025655,2]
[392664482,1761797201091,-500.0,0.00025655,2]
[392664483,1761797201120,-500.0,0.00025655,2]
[392664484,1761797201150,-500.0,0.00025655,2]
[392664485,1761797201179,-500.0,0.00025655,2]
[392664486,1761797201208,-500.0,0.00025655,2]
[392664487,1761797201236,-500.0,0.00025655,2]
[392664488,1761797201264,-500.0,0.00025655,2]
[392664489,1761797201293,-500.0,0.00025655,2]
[392664490,1761797201322,-500.0,0.00025655,2]
[392664491,1761797201458,-500.0,0.00025655,2]
[392664492,1761797201488,-500.0,0.00025655,2]
[392664493,1761797201518,-500.0,0.00025655,2]
[392664494,1761797201547,-500.0,0.00025655,2]
[392664495,1761797201576,-500.0,0.00025655,2]
[392664496,1761797201606,-500.0,0.00025655,2]
[392664497,1761797201637,-500.0,0.00025655,2]
[392664498,1761797201666,-500.0,0.00025655,2]
[392664499,1761797201695,-151.0,0.00025656,2]
[392664500,1761797201724,-151.0,0.00025656,2]
[392664501,1761797201753,-151.0,0.00025656,2]
[392664502,1761797201782,-151.0,0.00025656,2]
[392664503,1761797201809,-151.0,0.00025656,2]
[392664504,1761797201837,-151.0,0.00025656,2]
[392664505,1761797201864,-37.01,0.00025656,2]
[392664506,1761797201951,-113.99,0.00025656,2]
[392664507,1761797201979,-151.0,0.00025656,2]
[392664508,1761797202007,-151.0,0.00025656,2]
[392664509,1761797202035,-151.0,0.00025656,2]
[392664510,1761797202063,-151.0,0.00025656,2]
[392664511,1761797202091,-151.0,0.00025656,2]
[392664512,1761797202119,-151.0,0.00025656,2]
[392664513,1761797202146,-151.0,0.00025656,2]
[392664514,1761797202173,-151.0,0.00025656,2]
[392664515,1761797202201,-151.0,0.00025656,2]
[392664516,1761797202230,-151.0,0.00025656,2]
[392664517,1761797202257,-151.0,0.00025656,2]
[392664518,1761797202288,-151.0,0.00025656,2]
[392664519,1761797202317,-151.0,0.00025656,2]
[392664520,1761797202980,-151.0,0.0002543,2]
[392664521,1761797202993,-151.0,0.0002543,2]
[392664522,1761797203006,-68.61891027,0.0002543,2]
[392664523,1761797203015,-82.38108973,0.00025656,2]
[392664524,1761797203028,-5846.03,0.00025656,2]
[392664525,1761797206934,-10000.01,0.00025656,2]
[392664526,1761797207045,-10000.01,0.00025656,2]
[392664527,1761797207235,-10000.01,0.00025656,2]
[392664528,1761797219148,-1000.0,0.00024672,30]
[392664529,1761797219181,-8000.01,0.00025656,2]
[392664530,1761797230131,-168.956402,0.00024953,5]
[392664531,1761797230152,-51.69705543,0.00025655,2]
[392664532,1761797231074,-248.30294457,0.00025655,2]
[392664533,1761797231094,-7.7547476,0.00025655,2]
[392664534,1761797240631,300.0,0.000246,2]
[392664535,1761797241095,-3906.09106561,0.00024953,2]
[392664536,1761797251563,300.0,0.000246,2]
[392664537,1761797262544,150.0,0.00012389,30]
[392664538,1761797262674,300.0,0.000246,2]
[392664539,1761797262974,150.0,0.00013516,30]
[392664540,1761797277137,3934.9029187,0.00024664,2]
[392664541,1761797297017,300.0,0.0002449,2]
[392664542,1761797347803,1204.81766467,0.00024479,2]
[392664543,1761797348078,-8189.3165814,0.00024579,2]
[392664544,1761797348100,-300.0,0.0002486,2]
[392664545,1761797348122,-361.1246183,0.00024861,2]
[392664546,1761797348146,-496.57471404,0.00024861,2]
[392664547,1761797348167,-324.28158664,0.00024861,2]
[392664548,1761797348189,-500.0,0.00024861,2]
[392664549,1761797348210,-500.0,0.00024861,2]
[392664550,1761797348231,-500.0,0.00024861,2]
[392664551,1761797348252,-500.0,0.00024861,2]
[392664552,1761797348274,-500.0,0.00024861,2]
[392664553,1761797348295,-500.0,0.00024861,2]
[392664554,1761797348318,-93.08393944,0.00024861,2]
[392664555,1761797349132,-1161.01598323,0.00024861,2]
[392664556,1761797352066,-214.25306189,0.00024861,2]
[392664557,1761797374089,-918.41214094,0.00024737,14]
[392664558,1761797374111,-155.76,0.00024852,10]
[392664559,1761797374130,-778.81,0.00024852,10]
[392664560,1761797374150,-6636.30014951,0.00024861,2]
[392664561,1761797374178,-1803.2,0.00024861,2]
[392664562,1761797385050,-333.6494769,0.00024761,2]
[392664563,1761797385165,-2692.99046283,0.00024861,2]
[392664564,1761797385318,-10000.01,0.00024861,2]
[392664565,1761797387886,-4306.55843,0.00024737,2]
[392664566,1761797387910,-1386.89314,0.00024737,2]
[392664567,1761797394010,-10000.01,0.00024861,2]
[392664568,1761797394106,-10000.01,0.00024861,2]
[392664569,1761797403079,-300.0,0.0002486,2]
[392664570,1761797403106,-182.0,0.0002486,2]
[392664571,1761797403135,-300.0,0.0002486,2]
[392664572,1761797403165,-300.0,0.0002486,2]
[392664573,1761797403195,-343.79965746,0.00024861,2]
[392664574,1761797403272,-7148.41068508,0.00024861,2]
[392664575,1761797409158,-226.38973376,0.00024612,5]
[392664576,1761797409191,-406.91606056,0.00024861,2]
[392664577,1761797409221,-500.0,0.00024861,2]
[392664578,1761797409251,-500.0,0.00024861,2]
[392664579,1761797409282,-500.0,0.00024861,2]
[392664580,1761797409311,-500.0,0.00024861,2]
[392664581,1761797409345,-500.0,0.00024861,2]
[392664582,1761797409377,-500.0,0.00024861,2]
[392664583,1761797409408,-500.0,0.00024861,2]
[392664584,1761797409438,-500.0,0.00024861,2]
[392664585,1761797409467,-233.39841136,0.00024861,2]
[392664586,1761797409633,-266.60158864,0.0002486,2]
[392664589,1761797420195,5000.0,0.0002449,2]
[392664592,1761797428484,1195.0732816,0.0002449,2]
[392664593,1761797430483,-33.39841136,0.0002486,2]
[392664594,1761797430512,-1200.0,0.0002486,2]
[392664595,1761797430543,-266.60158864,0.00024861,2]
[392664596,1761797430580,-500.0,0.00024861,2]
[392664597,1761797430611,-500.0,0.00024861,2]
[392664598,1761797430772,-500.0,0.00024861,2]
[392664599,1761797430801,-500.0,0.00024861,2]
[392664600,1761797430830,-500.0,0.00024861,2]
[392664601,1761797430859,-500.0,0.00024861,2]
[392664602,1761797430888,-423.55721968,0.00024861,2]
[392664603,1761797431029,-500.0,0.00024861,2]
[392664604,1761797431056,-500.0,0.00024861,2]
[392664605,1761797431086,-500.0,0.00024861,2]
[392664606,1761797431115,-500.0,0.00024861,2]
[392664607,1761797431146,-500.0,0.00024861,2]
[392664608,1761797431175,-500.0,0.00024861,2]
[392664609,1761797431205,-500.0,0.00024861,2]
[392664612,1761797431235,-500.0,0.00024861,2]
[392664616,1761797431264,-500.0,0.00024861,2]
[392664620,1761797431293,-486.88682175,0.00024861,2]
[392664692,1761797431831,-26.2363565,0.00024861,2]
[392664694,1761797431841,-675.47555665,0.00024862,2]
[392664697,1761797431856,-15663.48371345,0.00024862,2]
[392664699,1761797431868,-625.36181593,0.00024862,2]
[392664702,1761797431880,-5986.54868707,0.00024862,2]
[392664871,1761797437616,-593.12454368,0.00024862,2]
[392664873,1761797437628,-532.70383983,0.00024862,2]
[392664875,1761797437642,-11188.96613336,0.00024862,2]
[392664878,1761797437669,5000.0,0.00024613,5]
[392664880,1761797437681,-9899.73943003,0.00024862,2]
[392664882,1761797437691,-300.0,0.000249,2]
[392664883,1761797437700,-691.56787869,0.00025372,3]
[392664884,1761797437712,-259.55212131,0.00025372,3]
[392664885,1761797437721,-951.09,0.00025373,3]
[392664886,1761797437730,-4996.7330313,0.0002559,2]
[392664887,1761797437741,-210.6809394,0.0002559,2]
[392664888,1761797437750,-763.0,0.00025654,2]
[392664889,1761797437759,-151.0,0.00025663,2]
[392664890,1761797437769,-151.0,0.00025663,2]
[392664891,1761797437778,-151.0,0.00025663,2]
[392664892,1761797437787,-151.0,0.00025663,2]
[392664893,1761797437796,-151.0,0.00025663,2]
[392664894,1761797437805,-151.0,0.00025663,2]
[392664895,1761797437814,-151.0,0.00025663,2]
[392664896,1761797437824,-151.0,0.00025663,2]
[392664897,1761797437833,-151.0,0.00025663,2]
[392664898,1761797437842,-151.0,0.00025663,2]
[392664899,1761797437851,-151.0,0.00025663,2]
[392664900,1761797437860,-151.0,0.00025663,2]
[392664901,1761797437869,-151.0,0.00025663,2]
[392664902,1761797437878,-151.0,0.00025663,2]
[392664903,1761797437890,-151.0,0.00025663,2]
[392664904,1761797437899,-151.0,0.00025663,2]
[392664905,1761797437908,-151.0,0.00025663,2]
[392664906,1761797437917,-151.0,0.00025663,2]
[392664907,1761797437927,-151.0,0.00025663,2]
[392664908,1761797437936,-256.14351418,0.00025663,2]
[392664909,1761797437946,-151.0,0.00025663,2]
[392664910,1761797437955,-151.0,0.00025663,2]
[392664911,1761797437964,-151.0,0.00025663,2]
[392664912,1761797437974,-151.0,0.00025663,2]
[392664913,1761797437983,-151.0,0.00025663,2]
[392664914,1761797437992,-151.0,0.00025663,2]
[392664915,1761797438001,-151.0,0.00025663,2]
[392664916,1761797438010,-151.0,0.00025663,2]
[392664917,1761797438019,-151.0,0.00025663,2]
[392664918,1761797438029,-151.0,0.00025663,2]
[392664919,1761797438038,-151.0,0.00025663,2]
[392664920,1761797438048,-151.0,0.00025663,2]
[392664921,1761797438058,-94.40665245,0.00025663,2]
[392664922,1761797438069,-56.59334755,0.00025663,2]
[392664923,1761797438079,-271.11655609,0.00025663,2]
[392664924,1761797438088,-563.31459219,0.00025668,2]
[392664925,1761797438097,-314.21992281,0.00025668,2]
[392664926,1761797438109,-185.78007719,0.00025668,2]
[392664927,1761797438119,-500.0,0.00025668,2]
[392664928,1761797438128,-500.0,0.00025668,2]
[392664929,1761797438140,-500.0,0.00025668,2]
[392664930,1761797438150,-305.2637886,0.00025668,2]
[392664931,1761797438159,-500.0,0.0002567,2]
[392664932,1761797438168,-500.0,0.0002567,2]
[392664933,1761797438178,-1001.17272923,0.00025671,2]
[392664934,1761797438187,-200.0,0.00025671,2]
[392664935,1761797438197,-242.49542036,0.00025671,2]
[392664936,1761797438206,-502.47097694,0.00025671,2]
[392664937,1761797438216,-500.0,0.00025671,2]
[392664938,1761797438225,-500.0,0.00025671,2]
[392664939,1761797438234,-508.85,0.00025671,2]
[392664940,1761797438243,-500.0,0.00025671,2]
[392664941,1761797438253,-500.0,0.00025671,2]
[392664942,1761797438263,-500.0,0.00025671,2]
[392664943,1761797438272,-162.03,0.00025671,2]
[392664944,1761797438282,-1036.02184779,0.00025672,2]
[392664945,1761797438293,-1116.45259264,0.00025672,2]
[392664946,1761797438304,-401.47767207,0.00025672,2]
[392664947,1761797438314,-279.35020406,0.00025672,2]
[392664953,1761797439920,-3.74045994,0.00025672,2]
[392664954,1761797439931,-500.0,0.00025672,2]
[392664955,1761797439940,-500.0,0.00025672,2]
[392664956,1761797439949,-399.65875064,0.00025673,2]
[392664957,1761797439958,-205.616186,0.00025673,7]
[392664958,1761797439967,-205.616186,0.00025673,7]
[392664959,1761797439975,-205.616186,0.00025673,7]
[392664960,1761797439984,-205.616186,0.00025673,7]
[392664961,1761797439993,-37542.5807099,0.00025673,2]
[392664962,1761797440002,-333.64947688,0.00025825,2]
[392664963,1761797440011,-215.3673415,0.0002592,2]
[392664964,1761797440021,-200.0,0.00025952,15]
[392664965,1761797440030,-1982.08646732,0.00025979,2]
[392664966,1761797440039,-1982.08646732,0.00026207,2]
[392664967,1761797440048,-1982.08646732,0.00026338,2]
[392664968,1761797440058,-1193.36495251,0.0002641,2]
[392664969,1761797440067,-1982.08646735,0.00026621,2]
[392664970,1761797440076,-951.09,0.00026689,3]
[392664971,1761797440084,-1193.36495251,0.00026755,2]
[392664972,1761797440094,-6003.24893076,0.00026889,2]
[392664973,1761797440102,-333.64947688,0.00026889,2]
[392664974,1761797440111,-201.8,0.00026931,3]
[392664975,1761797440119,-420.0,0.00026935,2]
[392664976,1761797440128,-420.0,0.00026935,2]
[392664977,1761797440138,-300.0,0.00026935,2]
[392664978,1761797440147,-685.68,0.0002694,3]
[392664979,1761797440156,-271.11655609,0.00026944,2]
[392664980,1761797440165,-457.11,0.0002695,3]
[392664981,1761797440174,-228.55,0.0002695,3]
[392664982,1761797440183,-914.22,0.00026954,3]
[392664983,1761797440192,-500.27906012,0.00026973,2]
[392664984,1761797440203,-371.3,0.00026979,3]
[392664985,1761797440211,-421.27672764,0.00026987,2]
[392664986,1761797440221,-15463.74,0.00026989,2]
[392664987,1761797440230,-205.616186,0.00026989,7]
[392664988,1761797440239,-205.616186,0.00026989,7]
[392664989,1761797440248,-205.616186,0.00026989,7]
[392664990,1761797440258,-205.616186,0.00026989,7]
[392664991,1761797440266,-295.8384,0.00027053,7]
[392664992,1761797440275,-1680.0,0.00027057,2]
[392664993,1761797440284,-951.09,0.00027097,3]
[392664994,1761797440294,-1759.99391718,0.00027141,2]
[392664995,1761797440303,-595.84785958,0.00027141,2]
[392664996,1761797440312,-1862.254053,0.00027155,2]
[392664997,1761797440321,-1828.44,0.00027354,3]
[392664998,1761797440330,-3656.88,0.00027364,3]
[392664999,1761797440340,-951.09,0.00027371,3]
[392665000,1761797440349,-501.95227617,0.00027373,2]
[392665001,1761797440363,-510.87861906,0.00027373,2]
[392665002,1761797440372,-505.43255394,0.00027373,2]
[392665003,1761797440382,-500.0,0.00027373,2]
[392665004,1761797440395,-501.40250504,0.00027373,2]
[392665005,1761797440405,-406.52687401,0.00027373,2]
[392665006,1761797440414,-500.0,0.00027373,2]
[392665007,1761797440423,-542.23311218,0.00027387,2]
[392665008,1761797440432,-500.0,0.00027397,2]
[392665009,1761797440441,-500.0,0.00027397,2]
[392665010,1761797440451,-500.0,0.00027397,2]
[392665011,1761797440460,-500.0,0.00027397,2]
[392665012,1761797440469,-465.28730372,0.00027397,2]
[392665013,1761797440478,-283.04315398,0.00027397,2]
[392665014,1761797440487,-500.0,0.00027397,2]
[392665015,1761797440496,-525.47511683,0.00027397,2]
[392665016,1761797440505,-627.81444994,0.00027397,2]
[392665017,1761797440514,-502.36891017,0.00027397,2]
[392665018,1761797440523,-500.79563314,0.00027397,2]
[392665019,1761797440533,-501.54339286,0.00027397,2]
[392665020,1761797440542,-500.0,0.00027397,2]
[392665021,1761797440552,-503.8949183,0.00027397,2]
[392665022,1761797440562,-367.24624304,0.00027397,2]
[392665023,1761797440571,-500.0,0.00027397,2]
[392665024,1761797440580,-504.02671561,0.00027397,2]
[392665025,1761797440589,-339.77727622,0.00027397,2]
[392665026,1761797440704,-500.6895292,0.00027397,2]
[392665027,1761797440714,-502.80337774,0.00027397,2]
[392665028,1761797440724,-502.74282574,0.00027397,2]
[392665029,1761797440733,-501.28528961,0.00027397,2]
[392665030,1761797440742,-501.94648577,0.00027397,2]
[392665031,1761797440751,-501.28221796,0.00027397,2]
[392665032,1761797440761,-500.0,0.00027397,2]
[392665033,1761797440770,-501.41292007,0.00027397,2]
[392665034,1761797440780,-502.01629232,0.00027397,2]
[392665035,1761797440788,-615.7722551,0.00027397,2]
[392665036,1761797440798,-502.5614335,0.00027397,2]
[392665037,1761797440807,-501.66792026,0.00027397,2]
[392665038,1761797440817,-500.0,0.00027397,2]
[392665039,1761797440826,-500.51752645,0.00027397,2]
[392665040,1761797440835,-504.12364029,0.00027397,2]
[392665041,1761797440845,-525.31428829,0.00027397,2]
[392665042,1761797440854,-506.46473484,0.00027397,2]
[392665043,1761797440863,-642.11035086,0.00027397,2]
[392665044,1761797440872,-498.13365603,0.00027397,2]
[392665045,1761797440881,-500.0,0.00027397,2]
[392665046,1761797440894,-510.2453576,0.00027397,2]
[392665047,1761797440904,-503.26276658,0.00027397,2]
[392665048,1761797440914,-502.43495929,0.00027397,2]
[392665049,1761797440923,-521.82283053,0.00027397,2]
[392665050,1761797440932,-501.40297122,0.00027397,2]
[392665051,1761797440942,-508.67661819,0.00027397,2]
[392665052,1761797440951,-501.75250885,0.00027397,2]
[392665053,1761797440960,-502.99072354,0.00027397,2]
[392665054,1761797440969,-502.81210006,0.00027397,2]
[392665055,1761797440979,-502.81373068,0.00027397,2]
[392665056,1761797440988,-503.01921756,0.00027397,2]
[392665057,1761797440998,-603.08992554,0.00027397,2]
[392665058,1761797441007,-501.29812994,0.00027397,2]
[392665059,1761797441017,-501.04755624,0.00027397,2]
[392665060,1761797441027,-500.7798198,0.00027397,2]
[392665061,1761797441036,-502.44024308,0.00027397,2]
[392665062,1761797441045,-502.87073888,0.00027397,2]
[392665063,1761797441054,-500.0,0.00027397,2]
[392665064,1761797441063,-501.0426971,0.00027397,2]
[392665065,1761797441072,-502.6856043,0.00027397,2]
[392665066,1761797441082,-500.0,0.00027397,2]
[392665067,1761797441091,-500.8698118,0.00027397,2]
[392665068,1761797441101,-501.22472043,0.00027397,2]
[392665069,1761797441110,-500.5694496,0.00027397,2]
[392665070,1761797441120,-502.05858042,0.00027397,2]
[392665071,1761797441129,-501.86632784,0.00027397,2]
[392665072,1761797441139,-487.77840992,0.00027397,2]
[392665073,1761797441148,-309.53912195,0.00027397,2]
[392665074,1761797441157,-500.0,0.00027397,2]
[392665075,1761797441166,-501.77049424,0.00027397,2]
[392665076,1761797441175,-501.73749137,0.00027397,2]
[392665077,1761797441185,-500.61429235,0.00027397,2]
[392665078,1761797441194,-262.52263956,0.00027397,2]
[392665079,1761797441203,-281.8369566,0.00027397,2]
[392665080,1761797441212,-500.0,0.00027397,2]
[392665081,1761797441221,-534.84321391,0.00027397,2]
[392665082,1761797441230,-519.29432047,0.00027397,2]
[392665083,1761797441239,-538.17649451,0.00027397,2]
[392665084,1761797441249,-537.8399142,0.00027397,2]
[392665085,1761797441258,-535.94868012,0.00027397,2]
[392665086,1761797441268,-530.28959652,0.00027397,2]
[392665087,1761797441277,-205.616186,0.00027397,7]
[392665088,1761797441286,-205.616186,0.00027397,7]
[392665089,1761797441295,-205.616186,0.00027397,7]
[392665090,1761797441304,-205.616186,0.00027397,7]
[392665091,1761797441314,-506.68759477,0.00027397,2]
[392665092,1761797441323,-205.616186,0.00027397,7]
[392665093,1761797441332,-205.616186,0.00027397,7]
[392665094,1761797441342,-205.616186,0.00027397,7]
[392665095,1761797441356,-205.616186,0.00027397,7]
[392665096,1761797441365,-500.0,0.00027397,2]
[392665097,1761797441374,-500.0,0.00027397,2]
[392665098,1761797441384,-500.88204708,0.00027397,2]
[392665099,1761797441395,-644.43592626,0.00027397,2]
[392665100,1761797441405,-505.88249294,0.00027397,2]
[392665101,1761797441415,-511.36898502,0.00027397,2]
[392665102,1761797441424,-521.78103336,0.00027397,2]
[392665103,1761797441434,-500.25644032,0.00027397,2]
[392665104,1761797441443,-502.22277412,0.00027397,2]
[392665105,1761797441452,-500.0,0.00027397,2]
[392665106,1761797441462,-513.11063335,0.00027397,2]
[392665107,1761797441471,-500.0,0.00027397,2]
[392665108,1761797441479,-623.3526911,0.00027397,2]
[392665109,1761797441489,-500.0,0.00027397,2]
[392665110,1761797441498,-500.0,0.00027397,2]
[392665111,1761797441507,-500.0,0.00027397,2]
[392665112,1761797441517,-500.0,0.00027397,2]
[392665113,1761797441526,-644.56131644,0.00027397,2]
[392665114,1761797441536,-627.456,0.00027397,2]
[392665115,1761797441545,-500.0,0.00027397,2]
[392665116,1761797441554,-575.5031117,0.00027397,2]
[392665117,1761797441563,-498.19309495,0.00027397,2]
[392665118,1761797441572,-500.0,0.00027397,2]
[392665119,1761797441582,-568.67,0.00027397,2]
[392665120,1761797441591,-500.0,0.00027397,2]
[392665121,1761797441600,-500.0,0.00027397,2]
[392665122,1761797441610,-538.0,0.00027397,2]
[392665123,1761797441619,-500.0,0.00027397,2]
[392665124,1761797441628,-389.54,0.00027397,2]
[392665125,1761797441640,-500.0,0.00027397,2]
[392665126,1761797441649,-500.0,0.00027397,2]
[392665127,1761797441659,-584.23901457,0.00027397,2]
[392665128,1761797441668,-342.33381105,0.00027397,2]
[392665129,1761797441678,-440.0,0.00027397,2]
[392665130,1761797441687,-501.89060676,0.00027397,2]
[392665131,1761797441696,-1114.9218415,0.00027481,2]
[392665132,1761797441705,-500.0,0.00027671,4]
[392665133,1761797441714,-621.47891426,0.00027671,4]
[392665134,1761797441723,-176.56673818,0.00027671,4]
[392665135,1761797441733,-480.72388396,0.00027671,4]
[392665136,1761797441741,-500.0,0.00027671,4]
[392665137,1761797441751,-500.0,0.00027671,4]
[392665138,1761797441760,-295.35211457,0.00027671,4]
[392665139,1761797441769,-245.69714693,0.00027671,4]
[392665140,1761797441779,-215.37630798,0.00027671,4]
[392665141,1761797441793,-152.15028152,0.00027671,4]
[392665142,1761797441802,-544.18672854,0.00027671,3]
[392665143,1761797441811,-500.0,0.00027671,4]
[392665144,1761797441820,-500.0,0.00027671,4]
[392665145,1761797441830,-500.0,0.00027671,4]
[392665146,1761797441840,-445.98663251,0.00027671,4]
[392665147,1761797441849,-500.0,0.00027671,4]
[392665148,1761797441859,-189.71918178,0.00027673,10]
[392665149,1761797441868,-201.8,0.00027696,4]
[392665150,1761797441878,-413.60570174,0.00027773,2]
[392665151,1761797441890,-1481.77390554,0.00027773,2]
[392665152,1761797441900,-3330.65729618,0.00027773,2]
[392665153,1761797441909,-462.786,0.00027891,18]
[392665154,1761797441918,-248.772689,0.00027903,2]
[392665155,1761797441927,-1000.0,0.00027921,5]
[392665156,1761797441937,-500.0,0.00027945,4]
[392665157,1761797441946,-500.0,0.00027945,4]
[392665158,1761797441955,-500.0,0.00028219,4]
[392665159,1761797441964,-500.0,0.00028219,4]
[392665160,1761797441973,-170.631061,0.00028219,2]
[392665161,1761797441982,-161.047185,0.00028224,3]
[392665162,1761797441991,-168.0,0.00028241,2]
[392665163,1761797442000,-168.0,0.00028291,2]
[392665164,1761797442009,-168.0,0.00028317,2]
[392665165,1761797442021,-914.22,0.0002832,3]
[392665166,1761797442033,-457.1,0.0002832,3]
[392665167,1761797442045,-1828.44,0.00028324,3]
[392665168,1761797442057,-205.616186,0.00028324,31]
[392665169,1761797442068,-205.616186,0.00028324,31]
[392665170,1761797442080,-205.616186,0.00028324,31]
[392665171,1761797442092,-205.616181,0.00028324,31]
[392665172,1761797442103,-168.0,0.00028329,2]
[392665173,1761797442113,-354.0,0.00028374,2]
[392665174,1761797442123,-951.09,0.00028437,4]
[392665175,1761797442134,-201.8,0.00028461,4]
[392665176,1761797442152,-1500.0,0.00028468,5]
[392665177,1761797442163,-500.0,0.00028493,4]
[392665178,1761797442174,-500.0,0.00028493,4]
[392665179,1761797442185,-168.0,0.00028513,2]
[392665180,1761797442196,-354.0,0.00028522,2]
[392665181,1761797442207,-271.11655609,0.00028714,2]
[392665182,1761797442217,-3656.88,0.00028724,3]
[392665183,1761797442228,-168.0,0.00028726,2]
[392665184,1761797442239,-7313.76,0.00028734,3]
[392665185,1761797442249,-2676.0,0.00028737,7]
[392665186,1761797442261,-500.0,0.00028767,4]
[392665187,1761797442271,-500.0,0.00028767,4]
[392665188,1761797442282,-168.0,0.00028771,7]
[392665189,1761797442292,-151.0,0.000288,14]
[392665190,1761797442305,-354.0,0.00028815,7]
[392665191,1761797442316,-6003.24893072,0.00028978,2]
[392665192,1761797442328,-2000.0,0.00029016,5]
[392665193,1761797442341,-500.0,0.00029041,4]
[392665194,1761797442356,-500.0,0.00029041,4]
[392665195,1761797442367,-168.0,0.0002912,2]
[392665196,1761797442378,-587.0,0.00029184,2]
[392665198,1761797442391,-2676.0,0.00029202,2]
[392665200,1761797442406,-201.8,0.00029225,5]
[392665202,1761797442418,-354.0,0.00029241,2]
[392665204,1761797442430,-500.0,0.00029315,4]
[392665206,1761797442440,-500.0,0.00029315,4]
[392665208,1761797442450,-196.0,0.00029324,2]